Cogmind - Beta 9.6 @@@ ROGUE MODE // 2020.06.11 @ 16:55:11 Player: Ben'n'Dan Result: Self-destructed Performance ------------- Evolutions (2) 1000 Regions Visited (7) 1400 Robots Destroyed (5) 25 Value Destroyed (70) 70 Prototype IDs (25) 500 Alien Tech Used (0) 0 Bonus (573) 573 TOTAL SCORE: 3568 Bonus ------- Pacifist 200 Follower Combat Kills 73 Aligned with FarCom 300 Cogmind --------- Core Integrity 522/550 Matter 285/300 Energy 280/280 System Corruption 0% Temperature Cool (0) Movement Flying (360) Ox4 Location -8/Materials Parts ------- > --- POWER (2) -------- Heavy Ion Engine > --- PROPULSION (3) --- VTOL Module > --- UTILITY (3) ------ Advanced Weight Redist. System Hacking Suite Hacking Suite > --- WEAPON (3) ------- AWS/Autocannon > --- INVENTORY (4) ---- Light Nuclear Core Peak State ------------ > --- POWER ------------ Heavy Ion Engine > --- PROPULSION ------- VTOL Module VTOL Module > --- UTILITY ---------- Advanced Weight Redist. System Hacking Suite Hacking Suite > --- WEAPON ----------- AWS/Autocannon > --- INVENTORY -------- Light Nuclear Core [Rating: 46] Favorites ----------- Power Heavy Ion Engine Engine Heavy Ion Engine Propulsion VTOL Module Leg Aluminum Leg Flight Unit VTOL Module Utility Hacking Suite Device Advanced Weight Redist. System Processor 0b10 Alert Chip Hackware Hacking Suite Weapon Light Assault Rifle Energy Gun Small Laser Ballistic Gun Light Assault Rifle Ballistic Cannon AWS/Autocannon Impact Weapon Heavy Hammer Build | -11 -10 -10 -9 -9 -9 -8 -8 ------- Run | Scr Mat Min Mat Min Exi Min Mat Slots Evolved 4 | . . . 2 . . . 2 Power 1 | . . . . . . . 1 Propulsion 1 | . . . 1 . . . . Utility 1 | . . . 1 . . . . Weapon 1 | . . . . . . . 1 Parts Attached 31 | 4 . 2 14 5 2 2 2 Power 2 | . . . 2 . . . . Engine 2 | . . . 2 . . . . Core . | . . . . . . . . Reactor . | . . . . . . . . Propulsion 11 | 2 . . 7 1 1 . . Treads . | . . . . . . . . Leg 2 | 2 . . . . . . . Wheel . | . . . . . . . . Hover . | . . . . . . . . Flight 9 | . . . 7 1 1 . . Utility 8 | . . 2 3 1 1 1 . Device 1 | . . . . . . 1 . Storage . | . . . . . . . . Processor 2 | . . 1 . . 1 . . Hackware 5 | . . 1 3 1 . . . Protection . | . . . . . . . . Artifact . | . . . . . . . . Weapon 10 | 2 . . 2 3 . 1 2 Energy Gun 2 | . . . 2 . . . . Energy Cannon . | . . . . . . . . Ballistic Gun 5 | 2 . . . 3 . . . Ballistic Cannon 2 | . . . . . . . 2 Launcher . | . . . . . . . . Special Weapon . | . . . . . . . . Impact Weapon 1 | . . . . . . 1 . Slashing Weapon . | . . . . . . . . Piercing Weapon . | . . . . . . . . Special Melee Weapon . | . . . . . . . . Unidentified Prototypes 1 | . . . 1 . . . . Parts Lost 11 | . . 4 5 . . 1 1 Power . | . . . . . . . . Propulsion 6 | . . 2 2 . . 1 1 Utility 1 | . . . 1 . . . . Weapon 4 | . . 2 2 . . . . Highest Loss Streak 4 | . . 4 4 . . 1 1 Average Slot Usage (%) 77 | . 57 56 50 91 100 76 60 Engine 7 | . . . 2 11 11 11 9 Leg 3 | . 28 24 . . . . . Flight 22 | . . . 8 33 33 22 18 Device 1 | . . . . . . 8 9 Processor 1 | . . 3 . . 3 2 . Hackware 24 | . . 3 32 29 30 22 18 Energy Gun 1 | . . . 7 . . . . Ballistic Gun 13 | . 28 24 . 16 22 1 . Impact Weapon 1 | . . . . . . 7 3 Naked Turns . | . . . . . . . . Heaviest Build 14 | 2 2 2 12 14 14 14 11 Greatest Support 20 | 20 3 3 15 15 15 19 19 Greatest Overweight (x) 2 | . . . 2 . . . . Average Overweight (x) . | . . . . . . . . Largest Inventory Capacity 4 | 4 4 4 4 4 4 4 4 Average Capacity 4 | 4 4 4 4 4 4 4 4 Most Carried 4 | 3 3 4 4 4 4 4 4 Average Carried 3 | 1 3 3 3 3 3 4 2 Final Capacity 4 | 4 4 4 4 4 4 4 4 Final Carried 4 | 3 3 4 4 4 4 4 1 Class Distribution -------------------- 84% | Hacker-Mutant 15% | Mutant Dominant Class ---------------- Mutant | -10/Materials Mutant | -10/Mines Hacker-Mutant | -9/Materials Hacker-Mutant | -9/Mines Hacker-Mutant | -9/Exiles Hacker-Mutant | -8/Mines Hacker-Mutant | -8/Materials Resources | -11 -10 -10 -9 -9 -9 -8 -8 ----------- Run | Scr Mat Min Mat Min Exi Min Mat Matter Collected 491 | 225 . . . 231 . 35 . Remotely . | . . . . . . . . Salvage Created 123 | . . . . 113 . . 10 Parts 11 | . . . . 4 . . 7 Haulers Intercepted . | . . . . . . . . Recyclers Shooed 1 | . . . . 1 . . . Parts Field Recycled . | . . . . . . . . Retrieved Matter . | . . . . . . . . Parts Self-Destructed . | . . . . . . . . Prevented . | . . . . . . . . Kills | -11 -10 -10 -9 -9 -9 -8 -8 ------- Run | Scr Mat Min Mat Min Exi Min Mat Combat Hostiles Destroyed 4 | . . . . 1 . . 3 Guns 1 | . . . . 1 . . . Cannons 3 | . . . . . . . 3 Classes Destroyed 3 | . . . . 2 . . 1 Recycler 1 | . . . . 1 . . . Swarmer 3 | . . . . . . . 3 Grunt 1 | . . . . 1 . . . Best Kill Streak 3 | . . . . 1 . . 3 Combat Bots Only 3 | . . . . 1 . . 3 Max Kills in Single Turn 1 | . . . . 1 . . 1 Gunslinging . | . . . . . . . . Exploded . | . . . . . . . . Melee . | . . . . . . . . Uniques/NPCs Destroyed . | . . . . . . . . Combat | -11 -10 -10 -9 -9 -9 -8 -8 -------- Run | Scr Mat Min Mat Min Exi Min Mat Damage Taken 970 | . 23 363 423 13 . 46 102 Core 228 | . 10 14 148 13 . 15 28 Absorbed by Shields . | . . . . . . . . Core Remaining (%) 82 | 100 . 90 . . . 56 . Volleys Fired 23 | . 1 4 7 11 . . . Largest 2 | . 2 2 1 2 . . . Hottest 46 | . 40 40 40 46 . . . Shots Fired 43 | . 2 8 7 18 . . 8 Gun 35 | . 2 8 7 18 . . . Cannon 8 | . . . . . . . 8 Launcher . | . . . . . . . . Special . | . . . . . . . . Kinetic 36 | . 2 8 . 18 . . 8 Thermal 7 | . . . 7 . . . . Explosive . | . . . . . . . . Electromagnetic . | . . . . . . . . Robot Hit Streak 7 | . 2 2 4 7 . . 6 Robot Miss Streak 3 | . . 3 2 1 . . 1 Penetration Max . | . . . . . . . . Secondary Targets . | . . . . . . . . Autonomous 8 | . . . . . . . 8 Shots Hit Robots 28 | . 2 3 5 11 . . 7 Core Hits 8 | . 1 1 1 3 . . 2 Critical Hits 1 | . 1 . . . . . . Critical Kills . | . . . . . . . . Critical Parts Destroyed 1 | . 1 . . . . . . Melee Attacks . | . . . . . . . . Impact . | . . . . . . . . Slashing . | . . . . . . . . Piercing . | . . . . . . . . Sneak Attacks . | . . . . . . . . Combat Hostiles . | . . . . . . . . Follow-up Attacks . | . . . . . . . . Damage Inflicted 823 | . 16 16 55 112 . . 624 Guns 191 | . 16 8 55 112 . . . Cannons 624 | . . . . . . . 624 Explosions . | . . . . . . . . Melee . | . . . . . . . . Ramming 8 | . . 8 . . . . . Kinetic 760 | . 16 8 . 112 . . 624 Thermal 55 | . . . 55 . . . . Explosive . | . . . . . . . . Electromagnetic . | . . . . . . . . Impact . | . . . . . . . . Slashing . | . . . . . . . . Piercing . | . . . . . . . . Highest Corruption 1 | . . 1 . . . . . Average Corruption 1 | . . 1 . . . . . Corruption Purged . | . . . . . . . . Overload Shots . | . . . . . . . . Overflow Damage 289 | . . . . . . . 289 Projectiles 289 | . . . . . . . 289 Explosions . | . . . . . . . . Melee . | . . . . . . . . Knockbacks 2 | . . . . . . . 2 Impact . | . . . . . . . . Kinetic 2 | . . . . . . . 2 Secondary . | . . . . . . . . Self-Inflicted Damage 4 | . . 4 . . . . . Shots . | . . . . . . . . Rammed 3 | . . 3 . . . . . Targets Rammed 3 | . . 3 . . . . . Kicked . | . . . . . . . . Crushed . | . . . . . . . . Highest Temperature 16 | . . 15 12 16 . . . Average Temperature 7 | . . 15 9 7 . . . Received Heat Transfer 210 | . 15 60 108 . . 27 . Siege Activations . | . . . . . . . . Robots Corrupted . | . . . . . . . . Combat Hostiles . | . . . . . . . . Parts Fried . | . . . . . . . . Impact Corruptions . | . . . . . . . . Robots Melted . | . . . . . . . . Combat Hostiles . | . . . . . . . . Parts Melted . | . . . . . . . . Heat Transferred 125 | . . . 125 . . . . Parts Sabotaged . | . . . . . . . . Parts Stolen . | . . . . . . . . Parts Stripped . | . . . . . . . . Power Chain Reactions . | . . . . . . . . Missiles Intercepted . | . . . . . . . . Alert | -11 -10 -10 -9 -9 -9 -8 -8 ------- Run | Scr Mat Min Mat Min Exi Min Mat Peak Influence 157 | . 45 32 66 157 . . 71 Average Influence 48 | . 20 26 15 96 . . 26 Maximum Alert Level . | . . . . . . . . Low Security (%) 100 | 100 100 100 100 100 . 100 100 Level 1 . | . . . . . . . . Level 2 . | . . . . . . . . Level 3 . | . . . . . . . . Level 4 . | . . . . . . . . Level 5 . | . . . . . . . . High Security . | . . . . . . . . Max Security . | . . . . . . . . Squads Dispatched 3 | . . . 2 . . . 1 Investigation . | . . . . . . . . Extermination . | . . . . . . . . Reinforcement 3 | . . . 2 . . . 1 Assault . | . . . . . . . . Garrison . | . . . . . . . . Intercept . | . . . . . . . . Construction Impeded . | . . . . . . . . Haulers Reinforced . | . . . . . . . . Stealth | -11 -10 -10 -9 -9 -9 -8 -8 --------- Run | Scr Mat Min Mat Min Exi Min Mat Distress Signals 1 | . 1 . . . . . . Communications Jammed . | . . . . . . . . Distress Signals . | . . . . . . . . Times Spotted 50 | . 4 16 14 7 . 3 6 Peak Tracking Total 19 | . 4 19 8 3 . 3 6 Tactical Retreats 8 | . . 2 2 2 . 1 1 Traps | -11 -10 -10 -9 -9 -9 -8 -8 ------- Run | Scr Mat Min Mat Min Exi Min Mat Traps Triggered . | . . . . . . . . Indirectly . | . . . . . . . . Trap Hack Attempts . | . . . . . . . . Triggered . | . . . . . . . . Disarmed . | . . . . . . . . Reprogrammed . | . . . . . . . . Reused . | . . . . . . . . Traps Extracted . | . . . . . . . . Installed . | . . . . . . . . Triggered . | . . . . . . . . Machines | -11 -10 -10 -9 -9 -9 -8 -8 ---------- Run | Scr Mat Min Mat Min Exi Min Mat Machines Disabled . | . . . . . . . . Max in Single Turn . | . . . . . . . . Machines Sabotaged . | . . . . . . . . Garrisons Compromised . | . . . . . . . . Overloaded Fab Kills . | . . . . . . . . Fab Network Shutdowns . | . . . . . . . . Hacking | -11 -10 -10 -9 -9 -9 -8 -8 --------- Run | Scr Mat Min Mat Min Exi Min Mat Machines Accessed 4 | . . 1 1 . 2 . . Terminals 1 | . . . 1 . . . . Fabricators . | . . . . . . . . Repair Stations . | . . . . . . . . Recycling Units . | . . . . . . . . Scanalyzers . | . . . . . . . . Garrison Access . | . . . . . . . . Total Hacks 29 | . . 1 4 . 24 . . Successful 29 | . . 1 4 . 24 . . Failed . | . . . . . . . . Catastrophic . | . . . . . . . . Database Lockouts . | . . . . . . . . Manual 1 | . . . . . 1 . . Terminals 4 | . . . 4 . . . . Fabricators . | . . . . . . . . Repair Stations . | . . . . . . . . Recycling Units . | . . . . . . . . Scanalyzers . | . . . . . . . . Garrison Access . | . . . . . . . . Terminal Hacks 29 | . . 1 4 . 24 . . Record 24 | . . . 1 . 23 . . Prototype ID Bank 1 | . . . 1 . . . . Open Door 1 | . . 1 . . . . . Emergency Access Points 1 | . . . 1 . . . . Locate Traps 1 | . . . 1 . . . . EX-Prototype ID Bank 1 | . . . . . 1 . . Fabricator Hacks . | . . . . . . . . Repair Station Hacks . | . . . . . . . . Recycling Unit Hacks . | . . . . . . . . Scanalyzer . | . . . . . . . . Garrison Access Hacks . | . . . . . . . . Unauthorized Hacks . | . . . . . . . . Terminals . | . . . . . . . . Fabricators . | . . . . . . . . Repair Stations . | . . . . . . . . Recycling Units . | . . . . . . . . Scanalyzers . | . . . . . . . . Garrison Access . | . . . . . . . . Data Cores Recovered . | . . . . . . . . Used . | . . . . . . . . Hacking Detections . | . . . . . . . . Full Trace Events . | . . . . . . . . Feedback Events . | . . . . . . . . Feedback Blocked . | . . . . . . . . Robot Schematics Acquired . | . . . . . . . . Robots Built . | . . . . . . . . Matter . | . . . . . . . . Time . | . . . . . . . . Total Robot Build Rating . | . . . . . . . . Part Schematics Acquired . | . . . . . . . . Parts Built . | . . . . . . . . Matter . | . . . . . . . . Time . | . . . . . . . . Total Part Build Rating . | . . . . . . . . Parts Repaired . | . . . . . . . . Time . | . . . . . . . . Parts Recycled . | . . . . . . . . Recycled Matter . | . . . . . . . . Retrieved Matter . | . . . . . . . . Retrieved Components . | . . . . . . . . Parts Scanalyzed . | . . . . . . . . Part Schematics Acquired . | . . . . . . . . Parts Damaged . | . . . . . . . . Bothacking | -11 -10 -10 -9 -9 -9 -8 -8 ------------ Run | Scr Mat Min Mat Min Exi Min Mat Used RIF Installer . | . . . . . . . . Robots Hacked . | . . . . . . . . Non-combat . | . . . . . . . . Combat . | . . . . . . . . Robot Hacks Applied . | . . . . . . . . Relay Couplers Released . | . . . . . . . . Robots Rewired . | . . . . . . . . Allies Hacked . | . . . . . . . . Hacks Repelled . | . . . . . . . . Allies | -11 -10 -10 -9 -9 -9 -8 -8 -------- Run | Scr Mat Min Mat Min Exi Min Mat Total Allies 4 | . . . . 4 . . . Largest Group 3 | . . . . 3 3 . . Highest-Rated Group 63 | . . . . 63 63 . . Highest-Rated Ally 31 | . . . . 31 31 . . Total Orders . | . . . . . . . . Ally Attacks 22 | . . . . 22 . . . Total Damage 251 | . . . . 251 . . . Kills 5 | . . . . 5 . . . Allies Corrupted . | . . . . . . . . Allies Melted . | . . . . . . . . Intel | -11 -10 -10 -9 -9 -9 -8 -8 ------- Run | Scr Mat Min Mat Min Exi Min Mat Robot Analysis Total . | . . . . . . . . Derelict Logs Recovered 3 | . . 1 . 2 . . . Drone Launches . | . . . . . . . . Drone Recoveries . | . . . . . . . . Exploration | -11 -10 -10 -9 -9 -9 -8 -8 ------------- Run | Scr Mat Min Mat Min Exi Min Mat Turns Passed 897 | 38 45 76 139 331 115 121 32 Spaces Moved 1698 | 39 80 114 210 613 320 302 20 Core 368 | 25 80 114 149 . . . . Treads . | . . . . . . . . Legs 14 | 14 . . . . . . . Wheels . | . . . . . . . . Hover . | . . . . . . . . Flight 1316 | . . . 61 613 320 302 20 Fastest Speed 34 | 50 50 50 34 34 34 34 37 Average Speed 38 | 75 50 50 46 34 34 36 37 Slowest Speed 200 | 120 50 50 200 34 34 37 37 Overloaded Moves . | . . . . . . . . Propulsion Burnouts . | . . . . . . . . Robots Hopped 4 | . . . 1 2 . 1 . Cave-ins Triggered . | . . . . . . . . Exploration Rate (%) 40 | 3 25 28 23 98 60 85 5 Regions Visited 7 Branch Regions 4 Pre-discovered Areas 2 | . . . . 1 1 . . Known Exits Taken . | . . . . . . . . Unknown Exits Taken 7 | 1 1 1 1 1 1 1 . Scrap Searched 3 | . . . . 2 . 1 . Spaces Dug . | . . . . . . . . Terrain Destroyed 1 | . . . . . . . 1 Melee . | . . . . . . . . Projectile 1 | . . . . . . . 1 AOE . | . . . . . . . . Actions | -11 -10 -10 -9 -9 -9 -8 -8 --------- Run | Scr Mat Min Mat Min Exi Min Mat Total 1891 | 45 82 125 241 717 326 310 45 Wait 114 | . 2 . . 86 . 5 21 Move 1683 | 38 79 113 207 608 319 299 20 Hop 4 | . . . 1 2 . 1 . Pick Up 14 | 3 . 2 6 2 1 . . Fast Attach 19 | 4 . 2 8 2 1 2 . Attach 6 | . . . 3 1 . . 2 Detach 1 | . . . . . . . 1 Swap 6 | . . . 3 2 1 . . Drop 18 | . . 1 6 3 4 3 1 Fire 23 | . 1 4 7 11 . . . Melee . | . . . . . . . . Ram 3 | . . 3 . . . . . Kick . | . . . . . . . . Crush . | . . . . . . . . Escape Stasis . | . . . . . . . . Rewire . | . . . . . . . . Trap . | . . . . . . . . Miscellaneous . | . . . . . . . . Route ------- -11/Scrapyard -10/Materials -10/Mines -9/Materials (discovered 2 exits: [*Min] / [*Sto]) -9/Mines (discovered 3 exits: [*Mat x2] / *Exi) -9/Exiles -8/Mines -8/Materials History --------- Turn | Location | Event 5 | -11/Scrapyard | Discovered new exit (range 16) 39 | -11/Scrapyard | Entered Materials 76 | -10/Materials | Discovered new exit (range 16) 84 | -10/Materials | Entered Mines 95 | -10/Mines | Learned Materials garrison access intel 98 | -10/Mines | Assembled infested the area 133 | -10/Mines | Discovered new exit (range 8) 143 | -10/Mines | Met a Derelict who couldn't figure out how to use a Trap Extractor 160 | -10/Mines | Entered Materials 160 | -9/Materials | Evolved 2 slots: Propulsion x1, Utility x1 189 | -9/Materials | Lost 4 parts (2n2w) 252 | -9/Materials | Discovered new exit (range 13) 273 | -9/Materials | Discovered new exit (range 10) 299 | -9/Materials | Entered Mines 313 | -9/Mines | Learned Materials emergency access door positions 320 | -9/Mines | Lost 4 parts (2n1u1w) 322 | -9/Mines | Assisted by bots powering up and referring to "LRC-V3" 327 | -9/Mines | Discovered new exit (range 10) 406 | -9/Mines | Received a Mining Laser from a helpful Derelict 417 | -9/Mines | Learned location of Zion (-6) 427 | -9/Mines | Joined a pair of Derelicts in attacking an 0b10 outpost 436 | -9/Mines | Build established: Hacker-Mutant 514 | -9/Mines | Discovered new exit (range 11) 568 | -9/Mines | Deemed a non-threat by the Exiles lab entrance 568 | -9/Mines | Discovered new exit (range 5) 630 | -9/Mines | Entered Exiles 630 | -9/Exiles | Accompanied by 3 allies 639 | -9/Exiles | Met 8R-AWN 645 | -9/Exiles | Met EX-HEX 655 | -9/Exiles | Met EX-BIN 659 | -9/Exiles | Aligned with FarCom system 659 | -9/Exiles | Given EX-Vault access code 667 | -9/Exiles | Opened EX-Vault 673 | -9/Exiles | Found AWS/Autocannon 681 | -9/Exiles | Warned to stay clear of 0b10 Research branches 692 | -9/Exiles | Met EX-DEC 712 | -9/Exiles | Found 0b10 Alert Chip 742 | -9/Exiles | Discovered new exit (range 10) 745 | -9/Exiles | Stole two prototypes: 0b10 Alert Chip, AWS/Autocannon 745 | -9/Exiles | Entered Mines 844 | -8/Mines | Discovered new exit (range 5) 866 | -8/Mines | Entered Materials 866 | -8/Materials | Evolved 2 slots: Power x1, Weapon x1 868 | -8/Materials | Loaded intel: 1 garrison access location 898 | -8/Materials | Self-destructed Last Messages --------------- 00863_ K-01 Serf collects debris. PARAMETERS=POWER_1,WEAPON_1 LOCATION=UNKNOWN GOAL=ESCAPE 00866_ Receiving FarCom transmissions... Loading Materials emergency access points (x7)... Loading Materials garrison access intel (x1)... 00870_ Dropped Hvy. Hammer. 00888_ Destroyed Lgt. Ion Engine. 00888_ S-10 Pest knocked back. 00890_ Destroyed Lgt. Assault Rifle. 00890_ Destroyed Flight Unit. 00890_ Destroyed Lgt. Ion Engine. 00891_ ALERT: Hostiles spotted, dispatching reinforcements to Terminal M002. 00892_ S-10 Pest destroyed. 00894_ Destroyed Lgt. Assault Rifle. 00894_ Destroyed Flight Unit. 00894_ S-10 Pest destroyed. 00895_ VTOL Module destroyed. 00897_ S-10 Pest destroyed. Map ----- +----------------------------------------------------+ | ??????????????????????????????????????????? | | ??????????????????????????????????????????? | | ??????????????????????????????????????????? | | ??????????????????????????????????????????? | | ??????????????????????????????????????????? | | ??????????????????????????????????????????? | | ??????????????????????????????????????????? | | ??????????????????????????????????????????? | | ??????????????????????????????????????????? | | ??????????????????????????????????????????? | | ??????????????????????????????????????????? | | ??????????????????????????????????????????? | | ??????????????????????????????????????????? | | ??????????????????????????????????????????? | | ???????????Y??????????????????????????????? | | ?????????????????????s????????????????????? | | ?????????????????????= ??????????????????? | | ????????????????????s%* #?????????????????? | | ??????????????######?[ #????+????????????? | | ?????????????? # #?????????????????? | | ?????????????""" # #?????????????????? | | ?????????# """"" # #?????????????????? | | ?????????# """"" # #?????????????????? | | ?????????# """"" # #????+????????????? | | ?????????# """ # #?????????????????? | | ?????????# =@# #?????????????????? | | ?????????# [%# ##????????????????? | | ?????????########+#; #????????????????? | | ???????????# ! #????????????????? | | ???????????# s +????????????????? | | ???????????# """ #????????????????? | | ???????????# """ #????????????????? | | ???????????# """ ! #????????????????? | | ???????????# #????????????????? | | ?????????? + #????????????????? | | ?????????" # " " #????????????????? | | ?????????" # "R" / #????????????????? | | ????????""?# """ #???????????????? | | ???????????### #???????????????? | | ?????????????# [ #???????????????? | | ?????????????# #######???????????????? | | ?????????????#+###+##?????????????????????? | | ??????????????????????????????????????????? | | ??????????????????????????????????????????? | | ??????????????????????????????????????????? | | ??????????????????????????????????????????? | | ??????????????????????????????????????????? | | ??????????????????????????????????????????? | | | | | +----------------------------------------------------+ Best States ------------- Heat Dissipation 31 Energy Generation 18 Energy Capacity 280 Matter Stores 300 Matter Capacity 300 Sight Range 16 Terrain Scan Density 10 Additional Mass Support 9 Evasion (%) 63 Targeting Accuracy 8 Offensive Hacking 30 Defensive Hacking 10 Item Schematics ----------------- None Robot Schematics ------------------ None Fabricated ------------ Nothing Alien Tech Used ----------------- None Achievements -------------- None Challenges ------------ None Game ------ Seed GlidesysNovaAmplifier Manual? 0 Play Time 00:16:34 Cumulative 126.8 hours Start 2020.06.11 @ 15:38:38 End 2020.06.11 @ 16:55:11 Sessions 1 Manual Loads 0 Difficulty Rogue Special Mode None Game No. 311 Rogue 303 Adventurer 8 Explorer 0 Win Type - Total 9 Types 6/0/2/1/0/0/0 Lore% 78 Gallery% 80 Achievement% 59 Wizard Run 0 Options --------- ASCII 0 Keyboard 0 Movement Mouse Keybinds 0 Fullscreen 1 Font 12/Smallcaps Map View 83x54 Tactical HUD 1 Map Filters NONE Filters NONE Steam 1 RUN: 336baa87-9e26-4152-8601-f5da56239f3f